fUST/lending_fUST_20251101
["ID","MTS","AMOUNT","RATE_DAILY","PERIOD"]
[392828737,1762011044175,-154.665798,0.00034,31]
[392828738,1762011044185,-151.0,0.00034,31]
[392828739,1762011044193,-151.0,0.00034,31]
[392828740,1762011044203,-162.04839,0.00034,31]
[392828741,1762011044212,-151.0,0.00034,31]
[392828742,1762011044221,-151.0,0.00034,31]
[392828743,1762011044230,-242.382288,0.00034,31]
[392828744,1762011044239,-151.0,0.00034,31]
[392828745,1762011044249,-157.413438,0.00034,31]
[392828746,1762011044261,-151.0,0.00034,31]
[392828747,1762011044271,-152.068639,0.00034,31]
[392828748,1762011044281,-161.455679,0.00034,31]
[392828749,1762011044290,-151.0,0.00034,31]
[392828750,1762011044299,-162.373467,0.00034,31]
[392828751,1762011044309,-151.0,0.00034,31]
[392828752,1762011044318,-159.518539,0.00034,31]
[392828753,1762011044328,-224.894056,0.00034,31]
[392828754,1762011044336,-224.894056,0.00034,31]
[392828755,1762011044346,-224.894056,0.00034,31]
[392828756,1762011044356,-224.894056,0.00034,31]
[392828757,1762011044365,-151.0,0.00034,31]
[392828758,1762011044374,-151.0,0.00034,31]
[392828759,1762011044383,-151.0,0.00034,31]
[392828760,1762011044392,-151.0,0.00034,31]
[392828761,1762011044400,-179.84293,0.00034,31]
[392828762,1762011044410,-151.0,0.00034,31]
[392828763,1762011044419,-151.0,0.00034,31]
[392828764,1762011044428,-151.0,0.00034,31]
[392828765,1762011044437,-151.0,0.00034,31]
[392828766,1762011044446,-153.879368,0.00034,31]
[392828767,1762011044455,-151.0,0.00034,31]
[392828768,1762011044464,-151.0,0.00034,31]
[392828769,1762011044473,-155.520612,0.00034,31]
[392828770,1762011044482,-151.0,0.00034,30]
[392828771,1762011044491,-162.131716,0.00034,31]
[392828772,1762011044500,-151.0,0.00034,31]
[392828773,1762011044509,-151.0,0.00034,31]
[392828774,1762011044519,-151.0,0.00034,31]
[392828775,1762011044532,-151.0,0.00034,31]
[392828776,1762011044551,-202.216892,0.00034,31]
[392828777,1762011044574,-151.0,0.00034,31]
[392828778,1762011044583,-151.0,0.00034,31]
[392828779,1762011044592,-151.0,0.00034,31]
[392828780,1762011044601,-151.0,0.00034,31]
[392828781,1762011044610,-151.0,0.00034,31]
[392828782,1762011044619,-151.0,0.00034,7]
[392828783,1762011044628,-151.0,0.00034,7]
[392828784,1762011044637,-151.0,0.00034,7]
[392828785,1762011044646,-151.0,0.00034,31]
[392828786,1762011044655,-280.52467,0.00034,7]
[392828787,1762011044664,-151.0,0.00034,31]
[392828788,1762011044673,-231.590831,0.00034,31]
[392828789,1762011044682,-154.014209,0.00034,30]
[392828790,1762011044691,-154.455577,0.00034,31]
[392828791,1762011044700,-487.146056,0.00034,31]
[392828792,1762011044709,-487.146056,0.00034,31]
[392828793,1762011044718,-487.146056,0.00034,31]
[392828794,1762011044727,-487.146056,0.00034,31]
[392828795,1762011044736,-167.976893,0.00034,31]
[392828796,1762011044745,-152.371675,0.00034,31]
[392828797,1762011044754,-170.940346,0.00034,31]
[392828798,1762011044765,-151.0,0.00034,31]
[392828799,1762011044773,-151.0,0.00034,31]
[392828800,1762011044782,-202.631074,0.00034,31]
[392828801,1762011044791,-151.0,0.00034,31]
[392828802,1762011044800,-151.0,0.00034,2]
[392828803,1762011044810,-151.0,0.00034,31]
[392828804,1762011044820,-151.0,0.00034,2]
[392828805,1762011044829,-233.456909,0.00034,31]
[392828806,1762011044839,-475.652085,0.00034,31]
[392828807,1762011044848,-151.0,0.00034,2]
[392828808,1762011044857,-475.652085,0.00034,31]
[392828809,1762011044867,-374.00757121,0.000345,7]
[392828810,1762011044879,-1000.0,0.00034521,5]
[392828811,1762011044889,-323.6418334,0.00034547,4]
[392828812,1762011044899,-263.83325014,0.00034547,4]
[392828813,1762011044910,-464.05,0.00034698,12]
[392828814,1762011044919,-30686.06789782,0.00034998,2]
[392828815,1762011044930,-155.0,0.00035,120]
[392828816,1762011044939,-1509.49314491,0.00035068,5]
[392828817,1762011044951,-6335.00028988,0.00035122,2]
[392828818,1762011044960,-215.08960987,0.00035122,2]
[392828819,1762011044970,-164.635929,0.00035122,31]
[392828820,1762011044981,-151.0,0.00035122,31]
[392828821,1762011044991,-151.0,0.00035122,2]
[392828822,1762011045000,-151.0,0.00035122,31]
[392828823,1762011045010,-151.0,0.00035122,2]
[392828824,1762011045019,-475.652085,0.00035122,31]
[392828825,1762011045029,-151.0,0.00035122,2]
[392828826,1762011045040,-475.652085,0.00035122,31]
[392828827,1762011045049,-646.88485691,0.00035169,120]
[392828828,1762011045058,-1393.36001882,0.0003539,3]
[392828829,1762011045068,-487.146056,0.0003539,31]
[392828830,1762011045077,-487.146056,0.0003539,31]
[392828831,1762011045086,-487.146056,0.0003539,31]
[392828832,1762011045095,-487.146056,0.0003539,31]
[392828833,1762011045104,-3961.22,0.000354,14]
[392828834,1762011045113,-151.45894254,0.00036204,7]
[392828835,1762011045122,-2500.0,0.00037,30]
[392828836,1762011045132,-702.86527722,0.00037169,120]
[392828837,1762011045141,-500.0,0.00037471,5]
[392828838,1762011045151,-257.97158409,0.00037727,5]
[392828839,1762011045160,-155.0,0.000378,120]
[392828840,1762011045170,-4959.99007684,0.000378,30]
[392828841,1762011045179,-256.34283155,0.00037983,42]
[392828842,1762011045188,-2000.0,0.00038,30]
[392828843,1762011045198,-160.0,0.00038,120]
[392828844,1762011045207,-174.0,0.00038,60]
[392828845,1762011045295,-174.0,0.00038,60]
[392828846,1762011045305,-176.10261566,0.00038,120]
[392828847,1762011045314,-156.0,0.00038,120]
[392828848,1762011045324,-1500.0,0.00038,3]
[392828849,1762011045333,-1708.12,0.00038,3]
[392828850,1762011045342,-7121.08113452,0.00038,30]
[392828851,1762011045352,-215.16174365,0.00038019,5]
[392828852,1762011045361,-151.68005488,0.00038175,14]
[392828853,1762011045370,-166.0,0.00038179,14]
[392828854,1762011045380,-166.38083822,0.00038179,14]
[392828855,1762011045389,-151.0,0.00038179,14]
[392828856,1762011045401,-176.51000242,0.00038179,14]
[392828857,1762011045410,-166.0,0.00038179,14]
[392828858,1762011045419,-201.0,0.00038182,20]
[392828859,1762011045428,-4287.45174571,0.00038399,2]
[392828860,1762011045437,-151.0,0.00038399,120]
[392828861,1762011045446,-151.0,0.00038399,120]
[392828862,1762011045456,-151.0,0.00038399,120]
[392828863,1762011045465,-151.0,0.00038399,120]
[392828864,1762011045474,-151.0,0.00038399,120]
[392828865,1762011045484,-1042.90842599,0.00038955,2]
[392828866,1762011045494,-2000.0,0.00039,30]
[392828867,1762011045503,-152.416193,0.00039,120]
[392828869,1762011045511,-308.970672,0.00039,120]
[392828870,1762011045520,-308.970672,0.00039,120]
[392828871,1762011045529,-308.970672,0.00039,120]
[392828872,1762011045538,-151.0,0.00039,120]
[392828873,1762011045547,-287.880775,0.00039,120]
[392828874,1762011045557,-287.880775,0.00039,120]
[392828875,1762011045566,-287.880775,0.00039,120]
[392828877,1762011045575,-287.880775,0.00039,120]
[392828878,1762011045584,-151.0,0.00039,120]
[392828879,1762011045593,-151.0,0.00039,120]
[392828880,1762011045602,-151.0,0.00039,120]
[392828881,1762011045611,-151.0,0.00039,120]
[392828882,1762011045620,-202.393106,0.00039,120]
[392828883,1762011045628,-151.0,0.00039,120]
[392828884,1762011045638,-151.0,0.00039,120]
[392828885,1762011045647,-151.0,0.00039,120]
[392828886,1762011045656,-151.0,0.00039,120]
[392828887,1762011045665,-151.0,0.00039,120]
[392828888,1762011045674,-151.0,0.00039,120]
[392828889,1762011045684,-151.0,0.00039,30]
[392828890,1762011045693,-162.131716,0.00039,120]
[392828891,1762011045702,-151.0,0.00039,120]
[392828892,1762011045711,-151.0,0.00039,120]
[392828893,1762011045720,-151.0,0.00039,120]
[392828894,1762011045729,-151.0,0.00039,120]
[392828895,1762011045738,-151.0,0.00039,120]
[392828896,1762011045747,-151.0,0.00039,120]
[392828897,1762011045756,-151.0,0.00039,120]
[392828899,1762011045765,-151.0,0.00039,120]
[392828901,1762011045774,-212.8257,0.00039,120]
[392828903,1762011045783,-151.0,0.00039,120]
[392828904,1762011045792,-758.84569753,0.00039169,120]
[392828905,1762011045801,-160.0,0.000396,120]
[392828906,1762011045810,-547.77399,0.00039654,2]
[392828907,1762011045819,-151.0,0.00039654,120]
[392828908,1762011045828,-151.0,0.00039654,120]
[392828909,1762011045837,-224.894056,0.00039654,120]
[392828910,1762011045846,-224.894056,0.00039654,120]
[392828911,1762011045855,-224.894056,0.00039654,120]
[392828912,1762011045863,-224.894056,0.00039654,120]
[392828913,1762011045873,-151.0,0.00039654,7]
[392828914,1762011045882,-151.0,0.00039654,7]
[392828915,1762011045891,-151.0,0.00039654,7]
[392828916,1762011045900,-151.0,0.00039654,120]
[392828917,1762011045915,-151.0,0.00039654,120]
[392828919,1762011045923,-1393.36001882,0.0003999,3]
[392828920,1762011045933,-500.0,0.0004,2]
[392828921,1762011045943,-40147.23038505,0.0004,2]
[392828922,1762011045952,-1500.0,0.0004,30]
[392828923,1762011045960,-152.166768,0.0004,120]
[392828924,1762011045970,-151.0,0.0004,120]
[392828925,1762011045979,-153.741765,0.0004,120]
[392828926,1762011045988,-151.0,0.0004,120]
[392828927,1762011045997,-151.0,0.0004,120]
[392828928,1762011046007,-151.0,0.0004,120]
[392828929,1762011046015,-151.0,0.0004,120]
[392828930,1762011046027,-151.0,0.0004,120]
[392828931,1762011046035,-151.0,0.0004,120]
[392828932,1762011046046,-151.0,0.0004,120]
[392828933,1762011046055,-151.0,0.0004,120]
[392828934,1762011046064,-151.0,0.0004,120]
[392828935,1762011046073,-487.146056,0.0004,120]
[392828936,1762011046083,-487.146056,0.0004,120]
[392828937,1762011046093,-487.146056,0.0004,120]
[392828938,1762011046103,-487.146066,0.0004,120]
[392828939,1762011046112,-151.0,0.0004,120]
[392828940,1762011046121,-151.0,0.0004,2]
[392828941,1762011046131,-151.0,0.0004,120]
[392828942,1762011046140,-151.0,0.0004,2]
[392828943,1762011046150,-475.652085,0.0004,120]
[392828944,1762011046160,-151.0,0.0004,2]
[392828945,1762011046170,-475.652085,0.0004,120]
[392828946,1762011046179,-323.96547524,0.00040066,7]
[392828947,1762011046188,-215.08960987,0.00040233,2]
[392828948,1762011046198,-155.0,0.000406,120]
[392828949,1762011046207,-1000.0,0.00041,30]
[392828950,1762011046216,-814.82611784,0.00041169,120]
[392828951,1762011046226,-1393.36001882,0.0004199,3]
[392828952,1762011046235,-2000.0,0.00042,30]
[392828953,1762011046245,-308.970672,0.00042,120]
[392828954,1762011046254,-308.970672,0.00042,120]
[392828955,1762011046264,-308.970672,0.00042,120]
[392828956,1762011046273,-287.880775,0.00042,120]
[392828957,1762011046282,-287.880775,0.00042,120]
[392828958,1762011046292,-287.880775,0.00042,120]
[392828959,1762011046303,-287.880775,0.00042,120]
[392828960,1762011046313,-151.0,0.00042,120]
[392828961,1762011046322,-151.0,0.00042,120]
[392828962,1762011046332,-151.0,0.00042,120]
[392828963,1762011046342,-151.0,0.00042,120]
[392828964,1762011046352,-151.0,0.00042,120]
[392828965,1762011046362,-151.0,0.00042,120]
[392828966,1762011046372,-171.850702,0.00042,120]
[392828967,1762011046381,-151.0,0.00042,120]
[392828968,1762011046390,-151.0,0.00042,120]
[392828969,1762011046400,-205.736806,0.00042,120]
[392828970,1762011046410,-151.0,0.00042,30]
[392828971,1762011046419,-162.131716,0.00042,120]
[392828972,1762011046429,-151.0,0.00042,120]
[392828973,1762011046438,-151.0,0.00042,120]
[392828974,1762011046447,-151.0,0.00042,120]
[392828975,1762011046457,-243.101567,0.00042,120]
[392828976,1762011046467,-151.0,0.00042,120]
[392828977,1762011046478,-151.0,0.00042,120]
[392828978,1762011046488,-151.0,0.00042,120]
[392828979,1762011046497,-151.0,0.00042,120]
[392828980,1762011046506,-151.0,0.00042,7]
[392828981,1762011046516,-151.0,0.00042,7]
[392828982,1762011046525,-151.0,0.00042,7]
[392828983,1762011046535,-151.0,0.00042,120]
[392828984,1762011046546,-151.0,0.00042,120]
[392828985,1762011046556,-151.0,0.00042,120]
[392828986,1762011046564,-219.232836,0.00042,120]
[392828987,1762011046574,-151.0,0.00042,2]
[392828988,1762011046583,-170.836481,0.00042,120]
[392828989,1762011046592,-151.0,0.00042,2]
[392828990,1762011046601,-475.652085,0.00042,120]
[392828991,1762011046611,-151.0,0.00042,2]
[392828992,1762011046620,-412.0,0.00042115,2]
[392828993,1762011046630,-157.818696,0.0004289,120]
[392828994,1762011046640,-151.0,0.0004289,120]
[392828995,1762011046650,-224.894056,0.0004289,120]
[392828996,1762011046659,-224.894056,0.0004289,120]
[392828997,1762011046668,-224.894056,0.0004289,120]
[392828998,1762011046677,-224.894056,0.0004289,120]
[392828999,1762011046686,-2786.72003764,0.0004289,3]
[392829000,1762011046698,-151.0,0.000429,120]
[392829001,1762011046708,-151.0,0.000429,120]
[392829002,1762011046718,-151.0,0.000429,120]
[392829003,1762011046729,-308.970672,0.000429,120]
[392829004,1762011046738,-308.970672,0.000429,120]
[392829005,1762011046747,-308.970672,0.000429,120]
[392829006,1762011046756,-308.970672,0.000429,120]
[392829007,1762011046765,-287.880775,0.000429,120]
[392829008,1762011046774,-287.880775,0.000429,120]
[392829009,1762011046783,-287.880775,0.000429,120]
[392829010,1762011046792,-287.880775,0.000429,120]
[392829011,1762011046801,-153.321969,0.000429,120]
[392829012,1762011046811,-151.0,0.000429,120]
[392829013,1762011046820,-151.0,0.000429,120]
[392829015,1762011046830,-151.0,0.000429,120]
[392829016,1762011046840,-156.935939,0.000429,120]
[392829018,1762011046849,-151.0,0.000429,120]
[392829019,1762011046858,-187.016508,0.000429,120]
[392829020,1762011046867,-151.0,0.000429,120]
[392829021,1762011046876,-224.894056,0.000429,120]
[392829022,1762011046885,-224.894056,0.000429,120]
[392829023,1762011046894,-224.894056,0.000429,120]
[392829024,1762011046905,-224.894056,0.000429,120]
[392829025,1762011046915,-151.0,0.000429,120]
[392829026,1762011046924,-151.0,0.000429,120]
[392829027,1762011046933,-151.0,0.000429,120]
[392829028,1762011046942,-240.222357,0.000429,120]
[392829029,1762011046952,-151.0,0.000429,120]
[392829030,1762011046962,-151.0,0.000429,120]
[392829031,1762011046971,-151.0,0.000429,120]
[392829032,1762011046980,-268.086703,0.000429,30]
[392829033,1762011046989,-162.131716,0.000429,120]
[392829034,1762011046998,-151.0,0.000429,120]
[392829035,1762011047008,-224.253136,0.000429,120]
[392829036,1762011047017,-151.0,0.000429,120]
[392829037,1762011047026,-151.510603,0.000429,120]
[392829038,1762011047036,-151.0,0.000429,120]
[392829039,1762011047044,-151.0,0.000429,120]
[392829040,1762011047054,-151.0,0.000429,120]
[392829041,1762011047064,-151.0,0.000429,7]
[392829042,1762011047073,-151.0,0.000429,7]
[392829043,1762011047082,-151.0,0.000429,7]
[392829044,1762011047092,-151.0,0.000429,120]
[392829045,1762011047102,-178.919373,0.000429,120]
[392829046,1762011047111,-160.0,0.00043,30]
[392829047,1762011047121,-160.0,0.00043,30]
[392829048,1762011047132,-1500.0,0.00043,30]
[392829050,1762011047146,-870.80653814,0.00043169,120]
[392829051,1762011047156,-155.0,0.000434,120]
[392829052,1762011047165,-151.0,0.000438,13]
[392829053,1762011047174,-500.0,0.00043835,120]
[392829054,1762011047184,-207.80373997,0.00043836,2]
[392829055,1762011047193,-160.0,0.000439,20]
[392829056,1762011047202,-160.0,0.000439,20]
[392829057,1762011047212,-160.0,0.000439,15]
[392829058,1762011047222,-160.0,0.000439,15]
[392829059,1762011047233,-160.0,0.00044,120]
[392829060,1762011047243,-160.0,0.00044,120]
[392829061,1762011047252,-160.0,0.00044,30]
[392829062,1762011047262,-160.0,0.00044,30]
[392829063,1762011047271,-160.0,0.00044,20]
[392829064,1762011047282,-160.0,0.00044,20]
[392829065,1762011047291,-536.181751,0.00044,30]
[392829066,1762011047301,-1281965.26165075,0.00044055,2]
[392829067,1762011047311,-601.85,0.000441,14]
[392829068,1762011047321,-1000.0,0.00044109,120]
[392829069,1762011047331,-500.0,0.00044244,120]
[392829070,1762011047340,-211.27,0.00044244,120]
[392829071,1762011047350,-1000.0,0.00044383,120]
[392829072,1762011047359,-271.19917294,0.0004447,120]
[392829073,1762011047369,-209.81038362,0.000445,120]
[392829074,1762011047378,-193.39660719,0.000445,120]
[392829075,1762011047387,-188.72636764,0.000445,120]
[392829076,1762011047397,-191.92336263,0.000445,120]
[392829077,1762011047406,-187.24692768,0.000445,120]
[392829078,1762011047416,-194.30010956,0.000445,120]
[392829079,1762011047425,-500.0,0.0004452,120]
[392829081,1762011047434,-1000.0,0.00044657,120]
[392829082,1762011047444,-171.22760215,0.0004489,2]
[392829083,1762011047455,-3961.22,0.000449,14]
[392829084,1762011047465,-520.95478174,0.00044931,120]
[392829085,1762011047475,-151.0,0.00044932,60]
[392829086,1762011047486,-151.0,0.00044932,60]
[392829087,1762011047495,-151.0,0.00044932,60]
[392829088,1762011047504,-151.0,0.00044932,60]
[392829089,1762011047514,-151.0,0.00044932,60]
[392829090,1762011047523,-151.0,0.00044932,60]
[392829091,1762011047533,-153.309773,0.00044932,60]
[392829092,1762011047542,-1393.36001882,0.0004499,3]
[392829093,1762011047552,-199.999999,0.00045,120]
[392829094,1762011047561,-15463.74,0.00045,7]
[392829095,1762011047570,-174.116442,0.00045,20]
[392829096,1762011047580,-151.0,0.00045,120]
[392829097,1762011047589,-151.0,0.00045,2]
[392829098,1762011047674,-151.0,0.00045,2]
[392829099,1762011047684,-475.652085,0.00045,120]
[392829100,1762011047699,-226.04869,0.00045,2]
[392829101,1762011047721,-926.78695845,0.00045169,120]
[392829102,1762011047736,-500.0,0.00045205,120]
[392829103,1762011047751,-183.985822,0.00045344,120]
[392829104,1762011047760,-151.0,0.00045344,120]
[392829105,1762011047769,-151.0,0.00045344,120]
[392829106,1762011047778,-151.0,0.00045344,120]
[392829107,1762011047787,-308.970672,0.00045344,120]
[392829108,1762011047795,-308.970672,0.00045344,120]
[392829109,1762011047804,-308.970672,0.00045344,120]
[392829110,1762011047814,-308.970674,0.00045344,120]
[392829111,1762011047824,-287.880775,0.00045344,120]
[392829112,1762011047833,-287.880775,0.00045344,120]
[392829113,1762011047842,-287.880775,0.00045344,120]
[392829114,1762011047851,-287.88077,0.00045344,120]
[392829115,1762011047860,-151.0,0.00045344,120]
[392829116,1762011047869,-151.0,0.00045344,120]
[392829117,1762011047878,-151.0,0.00045344,120]
[392829118,1762011047888,-151.0,0.00045344,120]
[392829119,1762011047897,-263.711647,0.00045344,120]
[392829120,1762011047911,-224.894056,0.00045344,120]
[392829121,1762011047921,-224.894056,0.00045344,120]
[392829122,1762011047930,-224.894056,0.00045344,120]
[392829123,1762011047939,-224.894053,0.00045344,120]
[392829124,1762011047949,-151.0,0.00045344,120]
[392829125,1762011047958,-237.993509,0.00045344,120]
[392829126,1762011047968,-240.115022,0.00045344,120]
[392829127,1762011047977,-151.0,0.00045344,120]
[392829128,1762011047989,-151.0,0.00045344,120]
[392829129,1762011047998,-151.0,0.00045344,120]
[392829130,1762011048007,-162.13171,0.00045344,120]
[392829131,1762011048016,-151.0,0.00045344,120]
[392829132,1762011048026,-151.0,0.00045344,120]
[392829133,1762011048035,-151.0,0.00045344,60]
[392829134,1762011048044,-151.0,0.00045344,120]
[392829135,1762011048053,-151.0,0.00045344,120]
[392829136,1762011048061,-6335.00028988,0.00045344,2]
[392829137,1762011048071,-151.0,0.00045344,7]
[392829138,1762011048079,-215.08960987,0.00045344,2]
[392829139,1762011048089,-151.0,0.00045344,7]
[392829140,1762011048098,-151.0,0.00045344,7]
[392829141,1762011048107,-151.0,0.00045344,120]
[392829142,1762011048117,-11445.04689038,0.00045344,2]
[392829143,1762011048126,-204.45,0.00045344,120]
[392829144,1762011048136,-203.67,0.00045344,120]
[392829145,1762011048145,-580.24858774,0.0004543,30]
[392829146,1762011048155,-9753.52013174,0.00045434,3]
[392829147,1762011048164,-224.24655192,0.00045434,3]
[392829148,1762011048173,-392134.66881941,0.00045444,30]
[392829149,1762011048243,196.95000197,0.0002495,2]
[392829150,1762011048258,-475.652085,0.00034,31]
[392829151,1762011048267,-475.652085,0.00035122,31]
[392829152,1762011048277,-475.652085,0.0004,120]
[392829153,1762011048286,-475.652085,0.00042,120]
[392829154,1762011048295,-475.652085,0.00042,120]
[392829155,1762011048304,-475.652085,0.00045,120]
[392829156,1762011048313,-18211.60020019,0.00045444,30]
[392829157,1762011048323,-2293.6,0.00045444,30]
[392829158,1762011048338,-914.50681172,0.00045444,30]
[392829159,1762011065230,500.0,0.00024999,2]
[392829160,1762011065261,543.60366778,0.00024999,2]
[392829161,1762011065293,500.0,0.00024999,2]
[392829162,1762011065340,236.35003108,0.00024999,2]
[392829172,1762011095271,304.72,0.000249,2]
[392829173,1762011157321,172.28418933,0.00024391,2]
[392829175,1762011233323,2559.05658492,0.00025,2]
[392829176,1762011335502,5000.0,0.00025,2]
[392829182,1762011488485,183.99552689,0.00024989,2]
[392829183,1762011488512,816.00447311,0.00024989,2]
[392829184,1762011488729,1000.0,0.00024989,2]
[392829185,1762011488967,1000.0,0.00024989,2]
[392829186,1762011489203,1052.06200516,0.00024989,2]
[392829197,1762011651155,326.0,0.00038185,20]
[392829219,1762012055612,425.516697,0.00013699,2]
[392829220,1762012055832,425.516697,0.00020187,2]
[392829221,1762012064536,309.80142924,0.00024985,2]
[392829233,1762012181485,413.0,0.00032877,120]
[392829239,1762012232208,-300.0,0.00025,2]
[392829240,1762012232218,-203.14661056,0.00025013,2]
[392829241,1762012232228,-425.516697,0.00026676,2]
[392829242,1762012232237,-239.71300046,0.00027013,2]
[392829243,1762012232247,-300.0,0.00027694,2]
[392829244,1762012232256,-300.0,0.00027694,2]
[392829245,1762012232266,-300.0,0.00027694,2]
[392829246,1762012232275,-2556.60671998,0.00027695,2]
[392829247,1762012232287,-5692.66999982,0.00027695,2]
[392829248,1762012232296,-487.0728402,0.00028548,30]
[392829249,1762012232305,-255.1991043,0.00028695,2]
[392829250,1762012232314,-160.0,0.00028991,2]
[392829251,1762012232324,-276.27939036,0.00029013,2]
[392829252,1762012232333,-797.07495393,0.00029028,2]
[392829253,1762012232342,-797.07495393,0.00030867,2]
[392829254,1762012232352,-312.84578026,0.00031013,2]
[392829255,1762012232361,-50000.0,0.00031026,2]
[392829256,1762012232371,-174.116443,0.0003245,20]
[392829257,1762012232380,-151.0,0.00032687,2]
[392829258,1762012232389,-151.0,0.00032687,2]
[392829259,1762012232399,-151.0,0.00032687,2]
[392829260,1762012232408,-151.0,0.00032687,2]
[392829261,1762012232417,-151.0,0.00032687,2]
[392829262,1762012232427,-151.0,0.00032687,2]
[392829263,1762012232437,-151.0,0.00032687,2]
[392829264,1762012232446,-151.0,0.00032687,2]
[392829265,1762012232455,-151.0,0.00032687,2]
[392829266,1762012232465,-151.0,0.00032687,2]
[392829267,1762012232474,-151.0,0.00032687,2]
[392829268,1762012232484,-151.0,0.00032687,2]
[392829269,1762012232494,-151.0,0.00032687,2]
[392829270,1762012232503,-151.0,0.00032687,2]
[392829271,1762012232512,-151.0,0.00032687,2]
[392829272,1762012232521,-151.0,0.00032687,2]
[392829273,1762012232530,-151.0,0.00032687,2]
[392829274,1762012232539,-151.0,0.00032687,2]
[392829275,1762012232548,-151.0,0.00032687,2]
[392829276,1762012232558,-151.0,0.00032687,2]
[392829277,1762012232572,-797.07495393,0.00032707,3]
[392829278,1762012232581,-403.98447456,0.00032849,2]
[392829279,1762012232590,-160.0,0.0003285,2]
[392829280,1762012232599,-349.41217016,0.00033013,120]
[392829281,1762012232610,-425.516697,0.00033165,2]
[392829282,1762012232619,-192.16549273,0.00033618,2]
[392829283,1762012232627,-797.07495393,0.00034547,4]
[392829284,1762012232638,-154.0,0.00035,120]
[392829285,1762012232648,-385.97856006,0.00035013,120]
[392829286,1762012232658,-174.56987703,0.0003512,2]
[392829287,1762012232667,-345.89788692,0.00035796,2]
[392829288,1762012232676,-369.67,0.00036286,5]
[392829289,1762012232685,-797.07495393,0.00036386,5]
[392829290,1762012232694,-151.0,0.00037185,2]
[392829291,1762012232703,-591.895027,0.00037373,2]
[392829292,1762012232712,-400.0,0.00038,120]
[392829293,1762012232721,-154.0,0.000382,120]
[392829294,1762012232731,-270.8508985,0.00038225,15]
[392829295,1762012232740,-797.07495393,0.00038226,6]
[392829296,1762012232749,-500.0,0.00038864,2]
[392829297,1762012232759,-425.516697,0.00039654,2]
[392829298,1762012232768,-200.0,0.0004,5]
[392829299,1762012232778,-797.87202888,0.00040066,7]
[392829300,1762012232787,-154.0,0.000415,120]
[392829301,1762012232796,-500.0,0.00043835,120]
[392829302,1762012232805,-251.27925247,0.000445,120]
[392829303,1762012232814,-188.72636764,0.000445,120]
[392829304,1762012232824,-191.92336263,0.000445,120]
[392829305,1762012232833,-187.24692767,0.000445,120]
[392829306,1762012232842,-500.0,0.0004452,120]
[392829307,1762012232851,-154.0,0.000447,120]
[392829308,1762012232860,-500.0,0.00045205,120]